bitfinex/quotes_ETHUSD_20250821
["timestamp","ask_amount","ask_price","bid_price","bid_amount"]
[1755779752198,0.0012,4290.0,4289.0,0.4725]
[1755779753970,0.0012,4290.0,4289.9,0.3147]
[1755779754775,0.0012,4290.0,4289.9,0.7872]
[1755779755307,0.0012,4290.0,4289.9,0.3147]
[1755779755874,0.0012,4290.0,4289.9,0.7872]
[1755779756406,0.0012,4290.0,4289.5,0.4725]
[1755779756903,0.0012,4290.0,4289.0,0.4725]
[1755779758300,0.0012,4290.0,4289.9,0.3147]
[1755779758686,0.0012,4290.0,4289.9,0.7872]
[1755779760790,0.0012,4290.0,4289.9,0.3147]
[1755779760978,0.0012,4290.0,4289.4,0.4725]
[1755779761593,0.0012,4290.0,4288.9,1.794]
[1755779761800,0.0012,4290.0,4289.0,0.4725]
[1755779762831,0.6612,4290.0,4288.9,1.794]
[1755779762987,0.66,4289.8,4288.9,1.794]
[1755779763186,0.66,4289.6,4288.9,1.794]
[1755779763505,0.66,4289.8,4288.9,2.2665]
[1755779763707,0.66,4289.6,4288.9,2.2665]
[1755779764036,0.12282872,4289.9,4288.9,1.794]
[1755779764231,0.0012,4290.0,4288.9,1.794]
[1755779764536,0.0012,4290.0,4288.8,0.001]
[1755779764537,0.099,4289.0,4288.8,0.001]
[1755779765340,0.3649,4289.0,4288.8,0.001]
[1755779765507,0.61513005,4288.9,4288.8,0.001]
[1755779765706,0.93401709,4288.9,4288.8,0.001]
[1755779766030,1.47155982,4288.9,4288.8,0.001]
[1755779767598,1.97197008,4288.9,4288.8,0.001]
[1755779768197,34.97197008,4288.9,4288.8,0.001]
[1755779770206,0.66,4288.7,4288.4,0.001]
[1755779770446,3.966,4288.5,4288.4,0.001]
[1755779770600,45.06223851,4288.5,4288.4,0.001]
[1755779770808,45.12313851,4288.5,4288.4,0.001]
[1755779771108,14.55562142,4288.5,4288.4,0.001]
[1755779771431,15.12058798,4288.5,4288.4,0.001]
[1755779771632,45.12057417,4288.5,4288.4,0.001]
[1755779772004,45.12057263,4288.5,4288.4,0.001]
[1755779772502,41.62828382,4288.5,4288.4,0.001]
[1755779773303,43.96010147,4288.5,4288.4,0.001]
[1755779773505,5.99187202,4288.4,4288.3,0.001]
[1755779773705,41.041627,4288.4,4288.3,0.001]
[1755779773929,0.66,4288.2,4288.1,0.001]
[1755779774132,0.66,4288.2,4287.9,0.001]
[1755779774133,18.95445584,4288.0,4287.9,0.001]
[1755779774352,55.65460559,4288.0,4287.9,0.001]
[1755779774629,56.82958841,4288.0,4287.9,0.001]
[1755779774832,54.49749886,4288.0,4287.9,0.001]
[1755779775943,5.99214393,4287.9,4286.0,0.44]
[1755779776144,35.03209294,4287.9,4286.5,0.44]
[1755779776440,37.39343255,4287.9,4286.7,0.44]
[1755779776937,54.43479884,4287.9,4286.7,0.44]
[1755779777144,56.76694277,4287.9,4286.7,0.44]
[1755779778238,56.88533704,4287.9,4285.6,0.001]
[1755779778544,16.62236629,4287.2,4286.4,0.44]
[1755779778710,54.87582175,4287.2,4285.6,0.001]
[1755779778910,37.83445546,4287.2,4287.1,0.2982]
[1755779779154,11.69564689,4287.2,4287.1,0.7382]
[1755779779354,7.11623663,4287.2,4287.1,0.7382]
[1755779779510,5.454,4287.2,4287.1,0.7382]
[1755779779710,8.873,4287.2,4287.1,0.7382]
[1755779779931,4.794,4287.2,4287.1,0.7382]
[1755779780134,8.873,4287.2,4287.1,0.7382]
[1755779780335,9.533,4287.2,4287.1,0.7382]
[1755779780538,10.4863,4287.2,4287.1,0.7382]
[1755779781760,10.4863,4287.2,4287.1,0.001]
[1755779782426,10.4863,4287.2,4287.1,0.7382]
[1755779784010,2.36133961,4287.9,4287.1,0.7382]
[1755779784223,4.079,4287.9,4287.2,0.44]
[1755779784531,4.079,4287.9,4287.8,0.2972]
[1755779784708,4.079,4288.2,4287.8,0.2972]
[1755779784912,4.079,4288.2,4287.8,0.7372]
[1755779785422,3.0,4288.1,4287.9,0.44]
[1755779785745,3.66,4288.1,4288.0,0.2972]
[1755779785913,3.0,4288.1,4288.0,0.2972]
[1755779786114,3.0,4288.1,4288.0,0.7372]
[1755779786325,3.66,4288.1,4288.0,0.7372]
[1755779786556,3.0,4288.3,4288.0,0.7372]
[1755779786769,0.02,4288.8,4288.1,0.44]
[1755779787056,0.68,4288.8,4288.7,0.2972]
[1755779787211,3.68,4288.8,4288.7,0.2972]
[1755779787411,3.68,4288.8,4288.7,0.7372]
[1755779787608,3.6792,4288.8,4288.7,0.7372]
[1755779787930,0.0192,4288.8,4288.7,0.7372]
[1755779794731,0.0192,4288.8,4288.7,0.76051708]
[1755779794930,0.0192,4288.8,4288.7,16.81756583]
[1755779795450,0.0192,4288.8,4288.7,19.14927473]
[1755779795652,0.0192,4288.8,4288.7,19.26607473]
[1755779795953,0.0192,4288.8,4288.7,19.14807519]
[1755779796120,0.002,4289.7,4288.8,3.0]
[1755779796315,0.002,4289.7,4289.6,13.25956629]
[1755779796518,0.002,4289.7,4289.6,13.37636629]
[1755779797049,0.002,4289.7,4289.6,13.81636629]
[1755779797725,0.002,4289.7,4289.6,17.89236629]
[1755779797931,0.002,4289.7,4289.6,13.81636629]
[1755779798116,0.002,4289.7,4289.6,17.89236629]
[1755779798323,0.002,4289.7,4289.6,13.81636629]
[1755779798561,0.002,4289.7,4289.6,4.929]
[1755779799052,0.002,4289.7,4289.6,0.854]
[1755779799255,0.002,4289.7,4289.6,4.8122]
[1755779799626,0.002,4289.7,4289.6,0.7372]
[1755779800040,0.002,4289.7,4289.6,4.8122]
[1755779800533,0.002,4289.7,4289.6,0.7372]
[1755779800735,0.002,4289.7,4289.6,4.8122]
[1755779801152,0.101,4289.7,4289.3,0.1168]
[1755779801350,0.66,4289.6,4289.3,0.1168]
[1755779801655,0.66,4289.3,4288.3,0.4551]
[1755779802227,0.66,4289.4,4288.0,2.09]
[1755779802522,0.66,4289.4,4288.0,4.074]
[1755779803358,0.2676,4289.4,4288.1,0.4551]
[1755779804066,0.2676,4289.4,4288.6,0.001]
[1755779805262,0.66,4289.2,4288.6,0.001]
[1755779805438,0.759,4288.7,4288.6,0.001]
[1755779806349,0.66,4288.7,4288.6,0.001]
[1755779807063,0.759,4288.7,4288.6,0.001]
[1755779808465,1.0266,4288.7,4288.6,0.001]
[1755779808686,0.759,4288.7,4288.6,0.001]
[1755779809694,0.66,4288.7,4288.6,0.001]
[1755779810265,0.759,4288.7,4288.6,0.001]
[1755779810465,0.66,4288.7,4288.6,0.001]
[1755779811054,0.759,4288.7,4288.6,0.001]
[1755779811260,0.7582,4288.7,4288.6,0.001]
[1755779811852,0.6592,4288.7,4288.6,0.001]
[1755779812858,0.6592,4288.7,4288.6,0.7694]
[1755779813292,0.6592,4288.7,4288.6,0.3143]
[1755779813798,0.6601,4288.7,4288.6,0.001]
[1755779814210,0.925,4288.7,4288.6,0.001]
[1755779814567,6.47315578,4288.7,4288.6,0.001]
[1755779816189,6.25567412,4288.7,4288.6,0.001]
[1755779817488,6.12518512,4288.7,4288.6,0.001]
[1755779817694,6.25564823,4288.7,4288.6,0.001]
[1755779818395,6.47304682,4288.7,4288.6,0.001]
[1755779819109,6.25564823,4288.7,4288.6,0.001]
[1755779820471,6.25564823,4288.7,4288.2,0.001]
[1755779820472,3.66,4288.6,4288.2,0.001]
[1755779820673,16.72226629,4288.3,4288.2,0.001]
[1755779820873,51.64168475,4288.3,4288.2,0.001]
[1755779821080,51.90488475,4288.3,4288.2,0.001]
[1755779821807,51.90480507,4288.3,4288.2,0.001]
[1755779822007,54.2669447,4288.3,4288.2,0.001]
[1755779822169,54.26691069,4288.3,4288.2,0.001]
[1755779822374,54.04971939,4288.3,4288.2,0.001]
[1755779822600,53.91931842,4288.3,4288.2,0.001]
[1755779822818,54.04959545,4288.3,4288.2,0.001]
[1755779822979,53.76701367,4288.3,4288.2,0.001]
[1755779823309,54.44354336,4288.3,4288.2,0.001]
[1755779823629,49.93210075,4288.3,4288.2,0.001]
[1755779823827,53.78697003,4288.3,4288.2,0.001]
[1755779824223,19.895793,4288.3,4288.2,0.001]
[1755779824426,20.555793,4288.3,4288.2,0.001]
[1755779824626,23.555793,4288.3,4288.2,0.001]
[1755779824806,19.484793,4288.3,4288.2,0.001]
[1755779825141,10.09313963,4288.3,4288.2,0.001]
[1755779825325,3.0,4288.3,4288.2,0.001]
[1755779825496,7.072,4288.3,4288.2,0.7694]
[1755779825701,7.732,4288.3,4288.2,0.7694]
[1755779825938,7.072,4288.3,4288.2,0.7694]
[1755779826107,3.0,4288.3,4288.2,0.7694]
[1755779826436,3.66,4288.3,4288.2,0.7694]
[1755779826732,3.0,4288.3,4288.2,0.7694]
[1755779827045,3.66,4288.3,4288.2,0.7694]
[1755779827748,0.66,4288.3,4288.2,0.001]
[1755779828110,0.6644,4288.3,4288.2,0.001]
[1755779828624,1.16494586,4288.3,4288.2,0.001]
[1755779829026,3.28477708,4288.3,4288.2,0.001]
[1755779829332,3.54967708,4288.3,4288.2,0.001]
[1755779829527,36.89768275,4288.3,4288.2,0.001]
[1755779830147,3.66,4288.2,4287.8,0.021]
[1755779830330,2.99219833,4287.8,4287.7,0.001]
[1755779830627,2.99219833,4287.8,4287.3,0.001]
[1755779830628,0.66,4287.6,4287.3,0.001]
[1755779830931,33.0,4287.7,4287.3,0.001]
[1755779830932,3.9266,4287.4,4287.3,0.001]
[1755779831229,36.03038115,4287.4,4287.3,0.001]
[1755779831429,36.03568115,4287.4,4287.3,0.001]
[1755779833031,18.99804744,4287.4,4287.3,0.001]
[1755779833345,51.30495218,4287.4,4287.3,0.001]
[1755779834059,21.30495218,4287.4,4287.3,0.001]
[1755779834257,51.30495218,4287.4,4287.3,0.001]
[1755779834425,54.11442256,4287.4,4287.3,0.001]
[1755779834956,53.98392216,4287.4,4287.3,0.001]
[1755779835119,50.04390045,4287.4,4287.3,0.001]
[1755779835318,55.36913007,4287.4,4287.3,0.001]
[1755779835631,54.11390045,4287.4,4287.1,0.001]
[1755779835821,1.91397715,4287.2,4287.1,0.001]
[1755779836022,37.14630657,4287.2,4287.1,0.001]
[1755779836624,35.89232942,4287.2,4287.1,0.001]
[1755779836839,35.94582942,4287.2,4287.1,0.001]
[1755779837021,35.94582942,4287.2,4285.9,0.001]
[1755779837022,0.66,4287.0,4285.9,0.001]
[1755779837223,3.66,4286.7,4285.9,0.001]
[1755779837562,18.18692629,4286.4,4285.9,0.001]
[1755779837719,53.10575571,4286.4,4285.9,0.001]
[1755779838259,54.24115576,4286.4,4285.9,0.001]
[1755779838434,3.66,4286.3,4285.9,0.001]
[1755779838641,0.9735,4286.0,4285.9,0.001]
[1755779838845,40.68732942,4286.0,4285.9,0.001]
[1755779839047,33.66,4285.9,4285.6,0.001]
[1755779839381,16.93326629,4285.7,4285.6,0.001]
[1755779839564,47.78209571,4285.7,4285.6,0.001]
[1755779839748,50.14343532,4285.7,4285.6,0.001]
[1755779840349,50.14343532,4285.7,4285.2,0.001]
[1755779840350,0.66,4285.5,4285.2,0.001]
[1755779840554,38.88678635,4285.5,4285.2,0.001]
[1755779841089,34.50848635,4285.5,4285.4,0.2885]
[1755779841242,3.50054586,4285.5,4285.4,0.7414]
[1755779841441,7.92060045,4285.5,4285.4,0.001]
[1755779841771,38.58060045,4285.5,4285.4,0.001]
[1755779841974,38.67960045,4285.5,4285.4,0.001]
[1755779842173,4.51060045,4285.5,4285.4,0.7414]
[1755779842374,0.50054586,4285.5,4285.4,0.7414]
[1755779842590,4.07,4285.5,4285.4,0.7414]
[1755779842756,5.23054586,4285.5,4285.4,0.7414]
[1755779843376,1.16054586,4285.5,4285.4,0.7414]
[1755779843588,1.25328604,4286.5,4285.4,0.7414]
[1755779843589,0.50054586,4285.8,4285.4,0.7414]
[1755779843740,1.795,4286.7,4285.4,0.2885]
[1755779843946,3.0,4286.5,4285.5,0.4529]
[1755779844175,4.43196067,4286.6,4286.4,0.2875]
[1755779844176,0.23156948,4286.6,4286.4,0.2875]
[1755779844364,4.07,4286.5,4286.4,0.2875]
[1755779844573,4.5707078,4286.5,4286.4,0.7404]
[1755779844772,0.5007078,4286.5,4286.4,0.7404]
[1755779845077,7.73,4286.5,4286.4,0.7404]
[1755779845272,7.5707078,4286.5,4286.4,0.7404]
[1755779846892,8.2307078,4286.5,4286.4,0.7404]
[1755779847496,3.66,4286.4,4285.9,0.4529]
[1755779847694,5.59843553,4286.5,4285.4,0.001]
[1755779847695,3.6627,4286.0,4285.4,0.001]
[1755779847869,1.02772773,4286.5,4285.5,0.4529]
[1755779847870,3.66,4285.8,4285.5,0.4529]
[1755779848190,3.66,4285.6,4285.4,0.001]
[1755779848392,8.2297078,4285.5,4285.4,0.001]
[1755779849161,8.2297078,4285.5,4285.4,0.7414]
[1755779849162,4.1607078,4285.5,4285.4,0.7414]
[1755779849587,8.2297078,4285.5,4285.4,0.7414]
[1755779850864,4.1607078,4285.5,4285.4,0.7414]
[1755779851064,3.66,4285.5,4285.4,0.7414]
[1755779852309,3.66,4285.5,4285.4,0.001]
[1755779852310,4.93428937,4285.5,4285.4,0.001]
[1755779853397,4.93428937,4285.5,4285.4,0.2885]
[1755779853725,9.00228937,4285.5,4285.4,0.001]
[1755779854505,9.31722022,4285.5,4285.4,0.001]
[1755779854688,9.4478673,4285.5,4285.4,0.001]
[1755779854884,9.66561677,4285.5,4285.4,0.001]
[1755779856195,39.66561677,4285.5,4285.4,0.001]
[1755779856573,3.66,4285.4,4285.2,0.001]
[1755779856784,12.51152446,4285.3,4285.2,0.001]
[1755779857110,42.51152446,4285.3,4285.2,0.001]
[1755779857307,41.25692461,4285.3,4285.2,0.001]
[1755779857727,42.51218052,4285.3,4285.2,0.001]
[1755779858318,41.25692461,4285.3,4285.2,0.001]
[1755779858612,41.15802461,4285.3,4285.2,0.001]
[1755779858915,41.25622461,4285.3,4285.2,0.001]
[1755779862770,40.90761193,4285.3,4285.2,0.001]
[1755779863070,41.25719643,4285.3,4285.2,0.001]
[1755779863465,41.25719077,4285.3,4285.2,0.001]
[1755779865082,11.15819077,4285.3,4285.2,0.001]
[1755779865289,8.79685114,4285.3,4285.2,0.001]
[1755779866208,5.98619331,4285.3,4285.2,0.7757]
[1755779866406,5.13590663,4285.3,4285.2,0.7757]
[1755779866620,0.02638937,4285.3,4285.2,0.7757]
[1755779866934,4.067,4285.9,4285.2,0.7757]
[1755779867135,3.21829739,4285.8,4285.2,0.7757]
[1755779867304,4.067,4285.7,4285.3,0.467]
[1755779867483,0.66,4285.7,4285.6,0.3077]
[1755779867691,0.66,4285.7,4285.6,0.7747]
[1755779868022,4.067,4285.8,4285.6,0.7747]
[1755779868421,0.66,4285.7,4285.6,0.3077]
[1755779868597,1.796,4286.5,4285.6,0.3077]
[1755779868598,0.66,4286.3,4285.6,0.3077]
[1755779868919,4.41617944,4286.2,4285.6,0.3077]
[1755779869087,4.067,4286.2,4285.7,0.467]
[1755779869286,4.066,4286.2,4286.1,0.3077]
[1755779869523,7.726,4286.2,4286.1,0.3077]
[1755779869719,7.726,4286.2,4286.1,0.7747]
[1755779870321,3.66,4286.2,4286.1,0.7747]
[1755779872438,0.66,4286.2,4286.1,0.7747]
[1755779873737,0.66,4286.2,4286.1,0.3077]
[1755779874709,0.66,4286.2,4286.1,0.7747]
[1755779880223,0.002,4286.7,4286.1,0.7747]
[1755779880454,0.002,4286.7,4286.2,0.49033068]
[1755779880649,0.002,4286.7,4286.6,0.3077]
[1755779881020,0.002,4286.7,4286.6,0.7747]
[1755779882947,0.0012,4286.7,4286.6,0.7747]
[1755779883948,0.0012,4286.7,4286.6,0.3077]
[1755779884265,0.0012,4286.7,4286.6,0.7747]
[1755779887759,0.0012,4286.7,4286.6,0.3077]
[1755779888084,0.66,4286.6,4286.1,1.795]
[1755779888280,0.3136,4286.7,4286.1,1.795]
[1755779888281,0.0012,4286.7,4286.1,1.795]
[1755779889254,0.0012,4286.7,4286.6,0.3144]
[1755779889781,0.0012,4286.7,4286.6,0.7664]
[1755779890883,0.0012,4286.7,4286.1,1.795]
[1755779891082,0.66,4286.6,4286.1,1.795]
[1755779891265,0.0012,4286.7,4286.2,0.452]
[1755779891981,0.0012,4286.7,4286.1,1.795]
[1755779892158,0.66,4286.6,4286.1,1.795]
[1755779892490,0.66,4286.6,4286.5,0.3144]
[1755779892687,0.0012,4286.7,4286.5,0.7664]
[1755779893187,0.0012,4286.7,4286.6,0.47532851]
[1755779893353,0.0012,4286.7,4286.6,0.78972851]
[1755779893659,0.66,4286.6,4286.1,2.248]
[1755779894605,0.0012,4286.7,4286.1,1.796]
[1755779894794,0.0012,4286.7,4286.2,0.452]
[1755779895502,0.0012,4286.7,4286.1,1.796]
[1755779895879,0.0012,4286.7,4286.6,0.3144]
[1755779896280,0.0012,4286.7,4286.6,0.7664]
[1755779897101,0.0012,4286.7,4286.1,1.796]
[1755779901782,0.9724,4286.2,4286.1,0.001]
[1755779902120,1.65088042,4286.2,4286.1,0.001]
[1755779902414,2.16568609,4286.2,4286.1,0.001]
[1755779903007,5.66898784,4286.2,4286.1,0.001]
[1755779903618,5.668886,4286.2,4286.1,0.001]
[1755779906016,7.463886,4286.2,4286.1,0.001]
[1755779906413,7.463086,4286.2,4286.1,0.001]
[1755779907834,39.79615491,4286.2,4285.2,0.001]
[1755779908040,3.66,4285.7,4285.2,0.001]
[1755779908331,0.9724,4285.3,4285.2,0.001]
[1755779908513,4.19053059,4285.3,4285.2,0.001]
[1755779908710,4.51231069,4285.3,4285.2,0.7674]
[1755779908939,4.16330175,4285.3,4285.2,0.7674]
[1755779909328,4.16330175,4285.3,4285.2,0.3154]
[1755779909752,3.0,4285.3,4285.2,0.7674]
[1755779909938,0.0012,4286.7,4285.2,0.7674]
[1755779910144,0.0012,4286.7,4285.3,0.47533558]
[1755779910446,0.0012,4286.7,4286.6,0.3144]
[1755779910945,0.0012,4286.7,4286.6,0.7664]
[1755779916461,0.0012,4286.7,4286.6,0.3144]
[1755779916826,0.0012,4286.7,4286.2,0.452]
[1755779917232,0.0012,4286.7,4286.1,1.795]
[1755779917456,0.0012,4286.7,4286.6,0.3144]
[1755779917851,0.0012,4286.7,4286.6,0.7671]
[1755779920736,0.0012,4286.7,4286.6,0.79042851]
[1755779922168,0.0012,4286.7,4286.6,0.7671]
[1755779924468,0.0012,4286.7,4286.6,4.8191]
[1755779930163,0.0004,4286.7,4286.6,4.8191]
[1755779930658,0.0004,4286.7,4286.6,7.9359]
[1755779931054,0.0004,4286.7,4286.6,8.029399]
[1755779931874,0.0004,4286.7,4286.6,3.977399]
[1755779932088,0.0004,4286.7,4286.6,8.027399]
[1755779934210,0.0004,4286.7,4286.6,0.7671]
[1755779934585,0.0004,4286.7,4286.6,0.3144]
[1755779934915,0.0004,4286.7,4286.6,4.35882851]
[1755779935154,0.0004,4286.7,4286.6,4.81152851]
[1755779935325,0.0004,4286.7,4286.6,4.7882]
[1755779936320,0.0004,4286.7,4286.6,4.7872]
[1755779937808,0.0004,4286.7,4286.6,4.048]
[1755779938109,0.301,4286.7,4286.6,4.048]
[1755779938406,0.0004,4286.7,4286.6,4.3345]
[1755779938611,0.0004,4286.7,4286.6,4.7872]
[1755779941383,0.0004,4286.7,4286.6,4.3345]
[1755779942288,0.301,4286.7,4286.6,4.046]
[1755779942488,0.0004,4286.7,4286.6,4.046]
[1755779943013,0.301,4286.7,4286.6,4.046]
[1755779943532,0.0004,4286.7,4286.6,4.7852]
[1755779943693,0.0004,4286.7,4286.6,4.902]
[1755779944387,0.0004,4286.7,4286.6,7.902]
[1755779945916,0.0004,4286.7,4286.6,3.856]
[1755779946082,0.0004,4286.7,4286.6,3.0]
[1755779946440,0.0004,4286.7,4286.6,4.046]
[1755779947429,0.301,4286.7,4286.6,3.0]
[1755779947721,0.7549,4286.7,4286.6,7.045]
[1755779947924,0.7549,4286.7,4286.6,4.045]
[1755779948127,0.7549,4286.7,4286.1,1.795]
[1755779948280,1.1139,4286.6,4286.2,4.045]
[1755779948610,0.3102,4286.3,4286.1,1.795]
[1755779948810,0.3102,4286.3,4286.2,7.044]
[1755779949385,0.7641,4286.3,4286.2,7.044]
[1755779950442,0.3102,4286.3,4286.2,4.044]
[1755779950734,0.7641,4286.3,4286.2,4.044]
[1755779951726,0.3102,4286.3,4286.2,4.044]
[1755779952038,0.7641,4286.3,4286.2,4.044]
[1755779953636,0.7641,4286.3,4286.1,1.795]
[1755779953795,1.1131,4286.2,4286.1,5.839]
[1755779953992,1.56563,4286.2,4286.1,5.839]
[1755779955210,1.56563,4286.2,4286.1,5.84]
[1755779956024,1.56563,4286.2,4286.1,4.045]
[1755779956526,1.56563,4286.2,4286.1,0.001]
[1755779958227,0.0004,4286.7,4286.1,0.001]
[1755779958538,0.0004,4286.7,4286.2,4.043]
[1755779959031,0.0004,4286.7,4286.3,0.02333014]
[1755779959936,0.3102,4286.4,4286.3,0.02333014]
[1755779960144,0.3102,4286.4,4286.2,4.043]
[1755779960699,0.3102,4286.4,4286.1,0.001]
[1755779960700,1.1139,4286.3,4286.1,0.001]
[1755779960934,1.11261,4286.2,4286.1,0.001]
[1755779961303,1.56651,4286.2,4286.1,0.001]
[1755779962035,2.13276674,4286.2,4286.1,0.001]
[1755779962235,2.41700302,4286.2,4286.1,0.001]
[1755779963336,2.06854606,4286.2,4286.1,0.001]
[1755779963544,5.63448515,4286.2,4286.1,0.001]
[1755779963756,7.42948515,4286.2,4286.1,0.001]
[1755779964050,7.42957351,4286.2,4286.1,0.001]
[1755779964210,7.21178708,4286.2,4286.1,0.001]
[1755779964411,7.4294098,4286.2,4286.1,0.001]
[1755779965448,11.4704098,4286.2,4286.1,0.001]
[1755779965651,41.4704098,4286.2,4286.1,0.001]
[1755779967051,43.80347871,4286.2,4286.1,0.001]
[1755779967483,3.66,4286.1,4285.7,0.001]
[1755779967777,16.96030454,4285.8,4285.7,0.001]
[1755779967979,48.02820434,4285.8,4285.7,0.001]
[1755779968172,50.815391,4285.8,4285.7,0.001]
[1755779970971,5.99334111,4285.7,4285.6,0.001]
[1755779971171,41.89513943,4285.7,4284.8,0.021]
[1755779971373,35.1817998,4285.6,4284.8,0.021]
[1755779971578,0.9702,4285.3,4284.8,0.021]
[1755779971773,6.61547691,4285.3,4284.8,0.021]
[1755779972074,7.06937691,4285.3,4284.8,0.021]
[1755779972279,8.00965477,4285.3,4284.8,0.021]
[1755779972845,3.66,4285.2,4283.8,0.44300494]
[1755779973049,3.66,4285.0,4283.8,0.44300494]
[1755779973342,3.66,4284.8,4283.8,0.44300494]
[1755779975075,0.66,4284.6,4283.8,0.44300494]
[1755779975279,0.66,4284.6,4284.5,0.3022]
[1755779975478,1.1301,4284.6,4284.5,0.3022]
[1755779975684,1.1301,4284.6,4284.2,0.4689]
[1755779975985,1.4403,4284.6,4283.9,0.4689]
[1755779976680,1.1301,4284.6,4284.5,0.3022]
[1755779977282,3.0,4285.2,4284.5,0.3022]
[1755779977283,0.66,4284.9,4284.5,0.7711]
[1755779977472,1.16058202,4284.9,4284.8,0.02]
[1755779977645,1.16058202,4284.9,4284.8,0.78]
[1755779977646,0.49978202,4284.9,4284.8,0.78]
[1755779977846,2.73527786,4285.3,4284.8,0.78]
[1755779977847,4.795,4285.3,4284.8,0.78]
[1755779978041,0.66,4285.2,4284.9,0.4488]
[1755779978252,0.9495,4285.1,4284.9,0.4488]
[1755779978563,1.6095,4285.1,4285.0,0.3112]
[1755779978763,1.6095,4285.1,4285.0,0.76]
[1755779979080,0.02,4285.8,4285.0,0.76]
[1755779979261,4.04,4285.7,4285.1,0.4488]
[1755779979460,0.66,4285.6,4285.1,0.4488]
[1755779979783,0.66,4285.6,4284.8,0.02]
[1755779979784,0.66,4285.6,4285.5,0.3112]
[1755779979961,0.9644,4285.6,4284.8,0.02]
[1755779980292,0.66,4285.4,4284.8,0.4688]
[1755779980492,0.66,4285.4,4284.8,0.02]
[1755779981962,0.66,4285.2,4284.8,0.02]
[1755779982476,0.50244,4285.5,4285.1,0.3112]
[1755779982477,0.66,4285.4,4285.1,0.3112]
[1755779982664,0.02,4285.8,4285.2,0.4488]
[1755779982862,0.15050406,4285.8,4285.7,0.3112]
[1755779983080,0.33505041,4285.8,4285.7,0.3112]
[1755779983286,0.46555447,4285.8,4285.7,0.76]
[1755779983493,1.12555447,4285.8,4285.7,0.76]
[1755779983852,0.66,4285.7,4285.2,0.4488]
[1755779984056,0.66,4285.5,4285.2,0.4488]
[1755779984257,0.66,4285.5,4285.4,0.3112]
[1755779984960,4.698,4285.7,4285.4,0.3112]
[1755779985159,0.66,4285.5,4285.4,0.3112]
[1755779985688,0.66,4285.5,4284.8,0.02]
[1755779985865,0.66,4285.5,4284.8,0.4688]
[1755779986255,0.13067008,4285.4,4284.8,0.4688]
[1755779986581,0.50330504,4285.6,4284.8,0.4688]
[1755779986582,0.66,4285.3,4284.8,0.4688]
[1755779986758,0.66,4285.5,4284.8,0.02]
[1755779986958,0.66,4284.9,4284.8,0.02]
[1755779987188,0.79066354,4284.9,4284.8,0.02]
[1755779987462,0.79066354,4284.9,4284.8,0.3312]
[1755779987895,0.79066354,4284.9,4284.8,0.02]
[1755779988370,4.82773113,4284.9,4284.8,0.3312]
[1755779988579,5.31053104,4284.9,4284.8,0.3312]
[1755779988966,1.27353104,4284.9,4284.8,0.3312]
[1755779989162,5.31053104,4284.9,4284.8,0.78]
[1755779989494,5.31053104,4284.9,4284.8,0.3312]
[1755779989674,5.81313249,4284.9,4284.8,0.78]
[1755779989862,5.81313249,4284.9,4284.8,0.3312]
[1755779990391,5.81313249,4284.9,4284.8,0.02]
[1755779990560,6.11753249,4284.9,4284.8,0.02]
[1755779991405,7.91253249,4284.9,4284.8,0.02]
[1755779991603,8.13126967,4284.9,4284.8,0.02]
[1755779992075,8.13127885,4284.9,4284.8,0.02]
[1755779992658,7.82687885,4284.9,4284.8,0.3312]
[1755779992863,3.57143867,4284.9,4284.8,0.3312]
[1755779993063,6.46466556,4284.9,4284.8,0.78]
[1755779993461,10.12466556,4284.9,4284.8,0.78]
[1755779995485,1.29366556,4284.9,4284.8,0.78]
[1755779995682,4.035,4285.1,4284.8,0.78]
[1755779995882,0.50260145,4285.0,4284.9,0.4488]
[1755779996093,4.035,4285.1,4284.9,0.3112]
[1755779996301,4.695,4285.1,4285.0,0.4488]
[1755779996466,5.1986973,4285.1,4285.0,0.76]
[1755779996668,1.1636973,4285.1,4285.0,0.76]
[1755779997184,1.1636973,4285.1,4285.0,0.3112]
[1755779997369,0.66,4285.0,4284.8,0.02]
[1755779997706,0.66,4285.0,4284.9,0.3112]
[1755779998905,1.16355068,4285.0,4284.9,0.3112]
[1755779999205,1.98360575,4285.0,4284.8,0.02]
[1755779999511,4.694,4284.9,4284.8,0.02]
[1755779999664,5.19755068,4284.9,4284.8,0.02]
[1755779999869,8.45440648,4284.9,4284.8,0.02]
[1755780000067,8.88740648,4284.9,4284.8,0.02]
[1755780000263,10.02657659,4284.9,4284.8,0.02]
[1755780000504,12.25457659,4284.9,4284.8,0.02]
[1755780000711,12.25450728,4284.9,4284.8,0.02]
[1755780000881,12.47298789,4284.9,4284.8,0.02]
[1755780001214,3.66,4284.8,4283.9,0.001]
[1755780001512,9.80223956,4284.0,4283.9,0.001]
[1755780001717,16.48336234,4284.0,4283.9,0.001]
[1755780001920,16.91336234,4284.0,4283.9,0.001]
[1755780002065,3.66,4283.9,4283.8,0.001]